bitfinex/quotes_BTCUSD_20250225
["timestamp","ask_amount","ask_price","bid_price","bid_amount"]
[1740446333925,0.03275,92051.0,92013.0,0.22782369]
[1740446334149,0.03275,92051.0,92025.0,0.08690787]
[1740446334350,0.03275,92051.0,92014.0,0.15]
[1740446334825,0.0344516,92051.0,92022.0,0.08690787]
[1740446335028,0.0344516,92051.0,92013.0,0.1992]
[1740446335836,0.05431829,92050.0,92013.0,0.1992]
[1740446336277,0.0344516,92051.0,92023.0,0.08690787]
[1740446336637,0.0344516,92051.0,92043.0,0.08690787]
[1740446336817,0.0344516,92051.0,92044.0,0.1951]
[1740446337485,0.0344516,92051.0,92026.0,0.0451]
[1740446337884,0.05431829,92050.0,92026.0,0.04522901]
[1740446340163,0.05449158,92048.0,92026.0,0.00012901]
[1740446341127,0.20412438,92046.0,92026.0,0.00012901]
[1740446341643,0.00035141,92045.0,92026.0,0.00012901]
[1740446342051,0.17,92037.0,92026.0,0.00012901]
[1740446342252,0.20458328,92035.0,92026.0,0.00012901]
[1740446342455,0.0772,92036.0,91978.0,0.0481]
[1740446342456,0.15,92026.0,91978.0,0.0481]
[1740446342656,0.17401098,92025.0,91989.0,0.00098048]
[1740446342866,0.00035141,92024.0,91989.0,0.00098048]
[1740446343075,0.17401098,92025.0,91989.0,0.00098048]
[1740446343676,0.17401098,92025.0,91989.0,0.0008521]
[1740446343677,0.01702396,92020.0,91989.0,0.0008521]
[1740446343906,0.01702396,92020.0,91978.0,0.0481]
[1740446344144,0.01715342,92020.0,91978.0,0.0481]
[1740446344596,0.01715342,92020.0,91985.0,0.08690787]
[1740446344763,0.00012946,92020.0,91995.0,0.08690787]
[1740446344964,0.00012946,92020.0,92007.0,0.0821]
[1740446345187,0.00012946,92020.0,92007.0,0.2783]
[1740446345404,0.00012946,92020.0,92018.0,0.08690787]
[1740446345600,0.00012946,92020.0,92008.0,0.15]
[1740446346360,0.00012946,92020.0,92016.0,0.08690787]
[1740446346841,0.0558974,92048.0,92017.0,0.00152133]
[1740446346976,0.05602696,92048.0,92018.0,0.1289]
[1740446347177,0.05602696,92048.0,92026.0,0.08690787]
[1740446347376,0.05602696,92048.0,92027.0,0.00152129]
[1740446347803,0.05602696,92048.0,92036.0,0.08690787]
[1740446348004,0.00183036,92048.0,92046.0,0.08690787]
[1740446348427,0.00183036,92048.0,92037.0,0.15]
[1740446348629,0.05602696,92048.0,92037.0,0.15]
[1740446349058,8.431e-05,92047.0,92018.0,0.1289]
[1740446349178,0.00183036,92048.0,92028.0,0.08690787]
[1740446349583,0.00183036,92048.0,92019.0,0.15]
[1740446349985,0.05437574,92047.0,92019.0,0.15]
[1740446350190,0.00183036,92048.0,92018.0,0.1289]
[1740446350191,0.05431323,92045.0,92018.0,0.048]
[1740446350389,8.431e-05,92044.0,92005.0,0.15]
[1740446350596,0.0547266,92043.0,92004.0,0.0757]
[1740446350794,0.17401098,92042.0,92002.0,0.045]
[1740446351057,0.22844941,92041.0,91991.0,0.07489589]
[1740446351288,0.13154886,92039.0,91985.0,0.13190787]
[1740446351518,0.13154886,92039.0,91991.0,0.02068038]
[1740446351760,0.17401098,92041.0,91995.0,0.08690787]
[1740446351933,0.05434336,92037.0,91995.0,0.08690787]
[1740446352315,0.17401098,92041.0,92005.0,0.08690787]
[1740446352478,0.00183036,92048.0,92015.0,0.08690787]
[1740446352692,0.00183036,92048.0,92025.0,0.08690787]
[1740446352886,0.00183036,92048.0,92026.0,0.00152114]
[1740446353093,0.05602696,92048.0,92025.0,0.08690787]
[1740446353285,0.00183036,92048.0,92025.0,0.08690787]
[1740446353491,0.00183036,92048.0,92025.0,0.08203904]
[1740446353735,0.00183036,92048.0,92035.0,0.08690787]
[1740446354074,0.00183036,92048.0,92036.0,0.22702102]
[1740446354251,0.00183036,92048.0,92037.0,0.00152096]
[1740446354450,0.00183036,92048.0,92045.0,0.08690787]
[1740446354894,0.00183036,92048.0,92046.0,0.1998]
[1740446355099,0.00183036,92048.0,92046.0,0.15]
[1740446355309,0.05602696,92048.0,92029.0,0.0498]
[1740446355717,0.05437574,92047.0,92011.0,0.0458]
[1740446356116,0.00183036,92048.0,92011.0,0.0458]
[1740446356432,0.00010302,92047.0,92011.0,0.0458]
[1740446356645,0.05475061,92046.0,92011.0,0.0458]
[1740446356845,0.05437574,92047.0,92011.0,0.0458]
[1740446357091,0.05441625,92045.0,91996.0,0.079]
[1740446357307,0.05441625,92045.0,91996.0,0.24706279]
[1740446357631,0.05447205,92043.0,91996.0,0.24706279]
[1740446357859,0.05447205,92043.0,91991.0,0.0471]
[1740446358079,0.17447227,92042.0,91991.0,0.0471]
[1740446358315,0.05443843,92041.0,91991.0,0.0471]
[1740446358525,0.1413463,92041.0,91991.0,0.0471]
[1740446358733,0.05414886,92039.0,91991.0,0.0471]
[1740446358947,0.00046129,92040.0,91996.0,0.08690787]
[1740446359200,0.17401098,92042.0,92008.0,0.15]
[1740446359622,0.17401098,92042.0,92029.0,0.0008502]
[1740446359824,0.05437574,92047.0,92029.0,0.0008502]
[1740446360030,0.00183036,92048.0,92029.0,0.0008502]
[1740446360266,0.05437574,92047.0,92029.0,0.0008502]
[1740446360772,0.00183036,92048.0,92029.0,0.0008502]
[1740446361260,0.00183036,92048.0,92030.0,0.08690787]
[1740446361503,0.00183036,92048.0,92031.0,0.18007892]
[1740446361742,0.00183036,92048.0,92041.0,0.08690787]
[1740446362008,0.00183036,92048.0,92042.0,0.00152083]
[1740446362741,0.00183036,92048.0,92033.0,0.00152099]
[1740446362977,0.00183036,92048.0,92030.0,0.08690787]
[1740446363209,0.00183036,92048.0,92031.0,0.00152099]
[1740446363449,0.00183036,92048.0,92031.0,0.15152099]
[1740446363648,0.00183036,92048.0,92040.0,0.08690787]
[1740446363891,0.00183036,92048.0,92042.0,0.0787]
[1740446364129,0.00183036,92048.0,92043.0,0.00152068]
[1740446364477,0.00183036,92048.0,92044.0,0.03171285]
[1740446364725,0.0017004,92063.0,92045.0,0.06782045]
[1740446364976,0.0017004,92063.0,92062.0,0.08690787]
[1740446365493,0.0017004,92063.0,92062.0,0.36150787]
[1740446366450,0.09759021,92079.0,92062.0,0.36150787]
[1740446366702,0.09771974,92079.0,92072.0,0.08690787]
[1740446366932,0.09771974,92079.0,92063.0,0.15]
[1740446367419,0.09771974,92079.0,92064.0,0.00152045]
[1740446367915,0.09771974,92079.0,92074.0,0.08690787]
[1740446368158,0.00012953,92079.0,92075.0,0.01021106]
[1740446368401,0.00012953,92079.0,92075.0,0.00152027]
[1740446368909,0.00012953,92079.0,92076.0,0.047]
[1740446369163,0.09759021,92103.0,92079.0,0.02]
[1740446369422,0.09802189,92103.0,92102.0,0.36440787]
[1740446372065,0.0016996,92113.0,92103.0,0.17]
[1740446372262,0.00182903,92113.0,92104.0,0.0015194]
[1740446372459,0.00182903,92113.0,92105.0,0.00151963]
[1740446373217,0.00182903,92113.0,92102.0,0.0805]
[1740446373442,0.00182903,92113.0,92103.0,0.00151967]
[1740446373645,0.00182903,92113.0,92103.0,0.08842754]
[1740446374624,0.00182903,92113.0,92103.0,0.23842754]
[1740446374799,0.00182903,92113.0,92104.0,0.22089275]
[1740446375007,0.00182903,92113.0,92105.0,0.00151945]
[1740446375594,0.00182903,92113.0,92109.0,0.02]
[1740446375774,0.00182903,92113.0,92112.0,0.02]
[1740446375978,0.00182903,92113.0,92112.0,0.02151928]
[1740446376184,0.00182903,92113.0,92112.0,0.29666122]
[1740446376385,0.00182903,92113.0,92112.0,0.29514193]
[1740446376710,0.0017024,92134.0,92127.0,0.04]
[1740446377052,0.0017024,92134.0,92133.0,0.4973334]
[1740446380182,0.0017024,92134.0,92133.0,0.15]
[1740446380390,0.0017024,92134.0,92133.0,0.52315909]
[1740446380542,0.0017024,92134.0,92133.0,0.4724]
[1740446384119,0.0017024,92134.0,92133.0,0.3224]
[1740446385303,0.0017024,92134.0,92133.0,0.4724]
[1740446395527,0.03418394,92163.0,92134.0,0.15]
[1740446395733,0.0001294,92144.0,92134.0,0.15]
[1740446395929,0.05418379,92169.0,92134.0,0.15]
[1740446395930,0.05425387,92175.0,92135.0,0.04724]
[1740446396160,0.00436,92150.0,92134.0,0.1501294]
[1740446396601,0.00436,92150.0,92135.0,0.00151933]
[1740446396806,0.15713566,92179.0,92135.0,0.00151933]
[1740446397005,0.032702,92167.0,92135.0,0.00151933]
[1740446397232,0.032702,92167.0,92134.0,0.1501294]
[1740446397464,0.0544686,92166.0,92134.0,0.1501294]
[1740446397645,0.08683052,92158.0,92134.0,0.1501294]
[1740446398900,0.032702,92167.0,92134.0,0.1501294]
[1740446399101,0.0455,92166.0,92134.0,0.1501294]
[1740446399940,0.0455,92166.0,92134.0,0.15164872]
[1740446400129,0.032702,92167.0,92135.0,0.00151914]
[1740446400334,0.032702,92167.0,92137.0,0.15]
[1740446400691,0.0544686,92166.0,92137.0,0.15]
[1740446400894,0.05425957,92153.0,92134.0,0.0001294]
[1740446401093,0.08683052,92144.0,92134.0,0.0001294]
[1740446401534,0.15713566,92150.0,92134.0,0.0001294]
[1740446402179,0.08683052,92143.0,92134.0,0.0001294]
[1740446402421,0.0753,92141.0,92134.0,0.0001294]
[1740446402623,0.15713566,92140.0,92134.0,0.0001294]
[1740446402827,0.0753,92141.0,92134.0,0.0001294]
[1740446402828,0.15,92138.0,92134.0,0.0001294]
[1740446403000,0.15,92138.0,92113.0,0.0008489]
[1740446403001,0.0455,92135.0,92113.0,0.0008489]
[1740446403198,0.08683052,92114.0,92113.0,0.0008489]
[1740446403400,0.15713566,92123.0,92113.0,0.0008489]
[1740446403778,0.08683052,92114.0,92113.0,0.0008489]
[1740446404137,0.51546618,92114.0,92113.0,0.0008489]
[1740446404343,0.15,92113.0,92102.0,0.0008497]
[1740446404543,0.08683052,92103.0,92102.0,0.00097913]
[1740446404755,0.15,92102.0,92046.0,0.0784]
[1740446404962,0.08683052,92078.0,92046.0,0.01766486]
[1740446405174,0.05486562,92077.0,92046.0,0.00043168]
[1740446405305,0.05472466,92067.0,92046.0,0.00043168]
[1740446405510,0.21186032,92067.0,92046.0,0.00043168]
[1740446405709,0.08683052,92058.0,92046.0,0.00043168]
[1740446405911,0.24396618,92058.0,92046.0,0.00043168]
[1740446406115,0.15713566,92058.0,92046.0,0.00043168]
[1740446407016,0.08683052,92056.0,92046.0,0.00043168]
[1740446407219,0.15713566,92055.0,92046.0,0.00043168]
[1740446408679,0.15713566,92055.0,92046.0,0.00128038]
[1740446409471,0.15713566,92067.0,92046.0,0.00128038]
[1740446409653,0.0462,92076.0,92046.0,0.00128038]
[1740446409848,0.0545232,92075.0,92046.0,0.00128038]
[1740446410157,0.05472466,92067.0,92046.0,0.00128038]
[1740446410395,0.34763527,92068.0,92046.0,0.00128038]
[1740446410614,0.05472466,92067.0,92046.0,0.00128038]
[1740446410916,0.15713566,92066.0,92046.0,0.00128038]
[1740446411536,0.21168913,92066.0,92046.0,0.00128038]
[1740446411689,0.15713566,92066.0,92046.0,0.00128038]
[1740446412095,0.004365,92065.0,92046.0,0.00128038]
[1740446413216,0.05433215,92064.0,92046.0,0.00128038]
[1740446413613,0.15713566,92063.0,92046.0,0.00128038]
[1740446413977,0.05499613,92062.0,92046.0,0.00128038]
[1740446414159,0.15713566,92063.0,92046.0,0.00128038]
[1740446414762,0.05499613,92062.0,92046.0,0.00128038]
[1740446415196,0.15713566,92063.0,92046.0,0.00128038]
[1740446415936,0.05499613,92062.0,92046.0,0.00128038]
[1740446416343,0.15713566,92063.0,92046.0,0.00128038]
[1740446416502,0.05499613,92062.0,92029.0,0.0008502]
[1740446416698,0.05499613,92062.0,92029.0,0.00097973]
[1740446416913,0.15713566,92063.0,92029.0,0.00097973]
[1740446417161,0.05499613,92062.0,92029.0,0.00097973]
[1740446417365,0.05424959,92061.0,92029.0,0.00097973]
[1740446417742,0.2369041,92062.0,92029.0,0.00097973]
[1740446417900,0.05424959,92061.0,92029.0,0.00097973]
[1740446418301,0.2369041,92062.0,92029.0,0.00097973]
[1740446418302,0.29190023,92062.0,92029.0,0.00097973]
[1740446418539,0.05424959,92061.0,92029.0,0.00097973]
[1740446419165,0.05419009,92059.0,92029.0,0.00097973]
[1740446419811,0.15713566,92060.0,92029.0,0.00097973]
[1740446420036,0.15713566,92060.0,92030.0,0.00152114]
[1740446420231,0.004365,92065.0,92030.0,0.00152114]
[1740446420433,0.004365,92065.0,92029.0,0.00097973]
[1740446420638,0.05433215,92064.0,92029.0,0.00097973]
[1740446420843,0.004365,92065.0,92029.0,0.00097973]
[1740446420844,0.001699,92063.0,92029.0,0.00097973]
[1740446421041,0.001699,92063.0,92030.0,0.00152106]
[1740446421241,0.05499613,92062.0,92029.0,0.00097973]
[1740446421661,0.05407283,92060.0,92029.0,0.00097973]
[1740446422777,0.15713566,92061.0,92029.0,0.00097973]
[1740446423506,0.15713566,92061.0,92030.0,0.08842516]
[1740446423737,0.001699,92063.0,92031.0,0.23504049]
[1740446423738,0.09643934,92044.0,92031.0,0.23504049]
[1740446423934,0.09643934,92044.0,92032.0,0.00152092]
[1740446424309,0.09643934,92044.0,92031.0,0.23504049]
[1740446424767,0.09643934,92044.0,92031.0,0.2261]
[1740446424921,0.09643934,92044.0,92031.0,0.0761]
[1740446425349,0.09643934,92044.0,92029.0,0.00097973]
[1740446426376,0.05429188,92043.0,92029.0,0.00097973]
[1740446426758,0.001699,92063.0,92029.0,0.00097973]
[1740446426759,0.05406834,92057.0,92029.0,0.00097973]
[1740446427001,0.05493418,92048.0,92029.0,0.00097973]
[1740446427963,0.15,92052.0,92029.0,0.00097973]
[1740446428314,0.05451445,92051.0,92029.0,0.00097973]
[1740446428539,0.15,92052.0,92029.0,0.00097973]
[1740446428741,0.05451445,92051.0,92029.0,0.00097973]
[1740446428947,0.15,92054.0,92029.0,0.00097973]
[1740446429285,0.05471196,92053.0,92029.0,0.00097973]
[1740446429584,0.15713566,92056.0,92029.0,0.00097973]
[1740446429715,0.0462,92076.0,92029.0,0.00097973]
[1740446429716,0.253575,92067.0,92029.0,0.00097973]
[1740446430090,0.15713566,92067.0,92033.0,0.15]
[1740446430286,0.15713566,92067.0,92034.0,0.03674048]
[1740446430894,0.15713566,92067.0,92033.0,0.15]
[1740446431243,0.15713566,92067.0,92031.0,0.0824]
[1740446431244,0.05499613,92062.0,92031.0,0.0824]
[1740446431457,0.05455347,92066.0,92031.0,0.0824]
[1740446431852,0.15713566,92067.0,92031.0,0.0824]
[1740446432048,0.00270655,92062.0,92031.0,0.0824]
[1740446432267,0.00270655,92062.0,92032.0,0.00152108]
[1740446432487,0.00270655,92062.0,92033.0,0.00849008]
[1740446432693,0.00270655,92062.0,92034.0,0.00152083]
[1740446432888,0.00270655,92062.0,92042.0,0.0869041]
[1740446433096,0.15713566,92067.0,92052.0,0.0869041]
[1740446433307,0.0023199,92061.0,92052.0,0.0869041]
[1740446433480,0.15713566,92092.0,92054.0,0.0795]
[1740446433657,0.15713566,92092.0,92055.0,0.00152045]
[1740446434394,0.15713566,92092.0,92054.0,0.0795]
[1740446434395,0.0547572,92087.0,92054.0,0.0795]
[1740446434737,0.15713566,92092.0,92055.0,0.00152059]
[1740446434934,0.15713566,92092.0,92055.0,0.23842469]
[1740446435177,0.15713566,92092.0,92055.0,0.15]
[1740446435390,0.0547572,92087.0,92055.0,0.15]
[1740446435498,0.15713566,92092.0,92055.0,0.15]
[1740446435499,0.05440358,92089.0,92055.0,0.15]
[1740446435705,0.032727,92069.0,92055.0,0.15]
[1740446436264,0.032727,92069.0,92055.0,0.17447059]
[1740446436823,0.032727,92069.0,92056.0,0.2369041]
[1740446437028,0.032727,92069.0,92057.0,0.00152046]
[1740446437226,0.032727,92069.0,92056.0,0.2369041]
[1740446437227,0.032727,92069.0,92056.0,0.15]
[1740446437449,0.15,92110.0,92056.0,0.15]
[1740446437450,0.09658539,92091.0,92056.0,0.15]
[1740446437610,0.05470818,92080.0,92056.0,0.15]
[1740446437809,0.03273,92062.0,92054.0,0.0795]
[1740446438293,0.00229397,92061.0,92055.0,0.00152068]
[1740446438495,0.00229397,92061.0,92055.0,0.08842478]
[1740446438625,0.09658539,92091.0,92055.0,0.08842478]
[1740446439391,0.032727,92070.0,92055.0,0.08842478]
[1740446439509,0.09658539,92091.0,92055.0,0.23842478]
[1740446439716,0.09658539,92091.0,92055.0,0.2369041]
[1740446439977,0.032726,92076.0,92056.0,0.1839686]
[1740446440210,0.032726,92076.0,92056.0,0.15152024]
[1740446440414,0.032726,92076.0,92056.0,0.15]
[1740446440770,0.032726,92076.0,92054.0,0.07962953]
[1740446442192,0.032726,92076.0,92054.0,0.00012953]
[1740446442834,0.0022936,92062.0,92054.0,0.00012953]
[1740446444066,0.09887899,92062.0,92054.0,0.00012953]
[1740446445991,0.09658539,92062.0,92054.0,0.00012953]
[1740446446186,0.00228831,92061.0,92054.0,0.00012953]
[1740446446999,0.032732,92060.0,92054.0,0.00012953]
[1740446447333,0.09658539,92056.0,92054.0,0.00012953]
[1740446447999,0.00228208,92055.0,92054.0,0.00012953]
[1740446450882,0.032732,92060.0,92054.0,0.00012953]
[1740446451220,0.00228298,92059.0,92054.0,0.00012953]
[1740446461613,0.09990333,92059.0,92054.0,0.00012953]
[1740446462025,0.24990333,92059.0,92054.0,0.00012953]
[1740446462229,0.09990333,92059.0,92055.0,0.0827]
[1740446462462,0.09990333,92059.0,92057.0,0.0869041]
[1740446462736,0.09990333,92059.0,92058.0,0.00152042]
[1740446462934,0.09990333,92059.0,92057.0,0.0869041]
[1740446463130,0.09990333,92059.0,92055.0,0.1277]
[1740446463333,0.09990333,92059.0,92055.0,0.0827]
[1740446463541,0.09990333,92059.0,92055.0,0.12322295]
[1740446463740,0.09990333,92059.0,92056.0,0.00152062]
[1740446464205,0.09990333,92059.0,92057.0,0.3224]
[1740446464557,0.09990333,92059.0,92058.0,0.00152052]
[1740446464762,0.09990333,92059.0,92058.0,0.15092049]
[1740446464990,0.09762035,92059.0,92058.0,0.20431758]
[1740446465740,0.001699,92061.0,92058.0,0.20431758]
[1740446465741,0.001699,92061.0,92060.0,0.02]
[1740446465904,0.001699,92061.0,92060.0,0.02152022]
[1740446466529,0.001699,92061.0,92060.0,0.90142022]
[1740446466756,0.15,92083.0,92060.0,0.90142022]
[1740446466757,0.15,92083.0,92064.0,0.02]
[1740446466973,0.09762035,92084.0,92078.0,0.02]
[1740446467185,0.09762035,92084.0,92081.0,0.02]
[1740446467186,0.00229895,92082.0,92081.0,0.02]
[1740446467398,0.09762035,92084.0,92081.0,0.02152007]
[1740446467796,0.09762035,92084.0,92083.0,0.1239]
[1740446468015,0.0544686,92166.0,92083.0,0.1239]
[1740446468016,0.03271,92120.0,92096.0,0.02]
[1740446468221,0.0023305,92119.0,92112.0,0.02]
[1740446468430,0.0476972,92154.0,92112.0,0.02]
[1740446468431,0.0476972,92154.0,92113.0,0.00151931]
[1740446468629,0.032704,92143.0,92114.0,0.3224]
[1740446468884,0.032704,92143.0,92117.0,0.0869041]
[1740446469107,0.00043142,92143.0,92126.0,0.02]
[1740446469323,0.00043142,92143.0,92118.0,0.90897917]
[1740446469525,0.00043142,92143.0,92118.0,0.87247009]
[1740446469732,0.00043142,92143.0,92119.0,0.00151903]
[1740446469941,0.00043142,92143.0,92120.0,0.09550291]
[1740446470146,0.00043142,92143.0,92130.0,0.0869041]
[1740446470380,0.00043142,92143.0,92131.0,0.00151901]
[1740446470580,0.00043142,92143.0,92132.0,0.8599]
[1740446470787,0.00043142,92143.0,92133.0,0.00151894]
[1740446470968,0.00043142,92143.0,92140.0,0.34730701]
[1740446471220,0.00043142,92143.0,92142.0,0.0481]
[1740446471387,0.00043142,92143.0,92142.0,0.04961865]
[1740446472160,0.0016972,92152.0,92151.0,0.02]
[1740446472349,0.00182658,92152.0,92151.0,0.89354]
[1740446472485,0.00415708,92152.0,92151.0,1.064394]
[1740446472688,0.0495,92214.0,92155.0,0.02]
[1740446472901,0.004357,92191.0,92155.0,0.88141825]
[1740446473103,0.004357,92191.0,92155.0,0.9254]
[1740446473327,0.004357,92191.0,92155.0,1.01346897]
[1740446473534,0.004357,92191.0,92155.0,0.8599]
[1740446473935,0.0771,92189.0,92155.0,0.8599]
[1740446474293,0.0015191,92188.0,92155.0,0.8428958]
[1740446474515,0.0015191,92188.0,92155.0,0.77659895]
[1740446474516,0.01418599,92156.0,92155.0,0.77659895]
[1740446474713,0.00994389,92156.0,92146.0,0.01364]
[1740446474929,0.00994389,92156.0,92147.0,0.00151897]
[1740446475150,0.00247533,92155.0,92147.0,0.00151897]
[1740446475367,0.00247533,92155.0,92149.0,0.0765]
[1740446475583,0.00247533,92155.0,92154.0,0.0655]
[1740446475780,0.004357,92191.0,92164.0,0.02]
[1740446475980,0.00798272,92181.0,92168.0,0.02]
[1740446476201,0.00012943,92191.0,92169.0,0.00151817]
[1740446476202,0.00238012,92190.0,92169.0,0.00151817]
[1740446476406,0.00012943,92191.0,92169.0,0.00151817]
[1740446476570,0.00012943,92191.0,92180.0,0.02]
[1740446476781,0.00012943,92191.0,92181.0,0.00151802]
[1740446477256,0.00012943,92191.0,92173.0,0.02]
[1740446477466,0.00012943,92191.0,92170.0,0.82517147]
[1740446477588,0.00012943,92191.0,92174.0,0.00151814]
[1740446477788,0.01702274,92186.0,92175.0,0.08266896]
[1740446477993,0.01702274,92186.0,92176.0,0.00151839]
[1740446478197,0.01702274,92186.0,92180.0,0.02]
[1740446478399,0.01702274,92186.0,92181.0,0.00151823]
[1740446478982,0.00012943,92191.0,92181.0,0.00151823]
[1740446479162,0.00260399,92185.0,92181.0,0.00993695]
[1740446479384,0.00012943,92191.0,92181.0,0.01511823]
[1740446479934,0.00182843,92191.0,92181.0,0.01511835]
[1740446480359,0.00182843,92191.0,92181.0,0.01511815]
[1740446481024,0.00182843,92191.0,92181.0,0.0136]
[1740446481174,0.00260399,92190.0,92181.0,0.0136]
[1740446481651,0.00260399,92190.0,92182.0,0.0015184]
[1740446482475,0.01702358,92189.0,92182.0,0.0015184]
[1740446482899,0.00260399,92188.0,92183.0,0.3224]
[1740446483099,0.00182843,92191.0,92184.0,0.03391008]
[1740446483303,0.13063224,92239.0,92186.0,0.02]
[1740446483527,0.00260399,92190.0,92187.0,0.32391792]
[1740446483738,0.014128,92214.0,92188.0,0.00151799]
[1740446483950,0.00808159,92203.0,92189.0,0.3224]
[1740446484095,0.014128,92214.0,92190.0,0.05158904]
[1740446484303,0.0170208,92221.0,92190.0,0.05158904]
[1740446484520,0.01248742,92239.0,92196.0,0.02]
[1740446484775,0.00810937,92216.0,92197.0,0.32391772]
[1740446484901,0.00810937,92216.0,92198.0,0.03390968]
[1740446485517,0.11138499,92247.0,92198.0,0.03390968]
[1740446485723,0.00270163,92215.0,92199.0,0.32391781]
[1740446485945,0.00813224,92216.0,92200.0,0.00151796]
[1740446486155,0.00813224,92216.0,92201.0,0.03900391]
[1740446486353,0.00813224,92216.0,92202.0,0.00151796]
[1740446486971,0.00813224,92216.0,92199.0,0.3224]
[1740446487372,0.00813224,92216.0,92200.0,0.00151798]
[1740446488024,0.00813224,92216.0,92200.0,0.00151794]
[1740446488311,0.03267,92221.0,92201.0,0.03376473]
[1740446488514,0.15,92246.0,92202.0,0.00151784]
[1740446488714,0.00270024,92220.0,92203.0,0.3224]
[1740446489016,0.032668,92245.0,92204.0,0.07911766]
[1740446489211,0.00818724,92223.0,92204.0,0.07911766]
[1740446489418,0.00818724,92223.0,92205.0,0.40267188]
[1740446489587,0.00818724,92223.0,92206.0,0.0015177]
[1740446490201,0.032668,92245.0,92206.0,0.0015177]
[1740446490457,0.032668,92245.0,92207.0,0.3224]
[1740446490630,0.032668,92245.0,92208.0,0.00151765]
[1740446490843,0.032668,92245.0,92209.0,0.04817895]
[1740446490844,0.00801898,92225.0,92209.0,0.04817895]
[1740446491195,0.00801898,92225.0,92210.0,0.00151776]
[1740446491497,0.032668,92245.0,92207.0,0.3224]
[1740446491498,0.032668,92245.0,92208.0,0.0015177]
[1740446491709,0.0008485,92216.0,92209.0,0.3224]
[1740446491861,0.0008485,92216.0,92210.0,0.00151767]
[1740446492497,0.0008485,92216.0,92211.0,0.0498]
[1740446492712,0.0008485,92216.0,92212.0,0.03888934]
[1740446492904,0.0008485,92216.0,92213.0,0.02]
[1740446493104,0.0008485,92216.0,92214.0,0.00151754]
[1740446493253,0.0008485,92216.0,92214.0,0.00151749]
[1740446494293,0.0008485,92216.0,92212.0,0.3224]
[1740446494519,0.0008485,92216.0,92213.0,0.07894653]
[1740446495148,0.0008485,92216.0,92212.0,0.3224]
[1740446495149,0.0008485,92216.0,92212.0,0.29332917]
[1740446495313,0.0008485,92216.0,92198.0,0.01372938]
[1740446495663,0.0008485,92216.0,92202.0,0.00151792]
[1740446495778,0.032673,92215.0,92191.0,0.06332786]
[1740446495977,0.032673,92215.0,92192.0,0.0007597]
[1740446496205,0.00272129,92214.0,92193.0,0.02]
[1740446496406,0.00272129,92214.0,92194.0,0.00075884]
[1740446496607,0.0008485,92216.0,92195.0,0.0204441]
[1740446496831,0.00915889,92216.0,92196.0,0.00075913]
[1740446497032,0.00915889,92216.0,92196.0,0.00075918]
[1740446497828,0.0008485,92216.0,92200.0,0.02]
[1740446498078,0.00272099,92215.0,92195.0,0.0204441]
[1740446498282,0.0008485,92216.0,92200.0,0.02]
[1740446498484,0.0008485,92216.0,92201.0,0.00075867]
[1740446498628,0.0008485,92216.0,92196.0,0.02105262]
[1740446498829,0.0008485,92216.0,92197.0,0.00373969]
[1740446499210,0.0008485,92216.0,92210.0,0.0029808]
[1740446499382,0.0008485,92216.0,92215.0,0.0229808]
[1740446499612,0.0008485,92216.0,92215.0,0.63139365]
[1740446499763,0.01219139,92247.0,92233.0,0.02]
[1740446499963,0.00043126,92246.0,92236.0,0.0789]
[1740446500168,0.00315225,92246.0,92237.0,0.00075709]
[1740446500346,0.00043126,92246.0,92238.0,0.07238928]
[1740446500550,0.00043126,92246.0,92239.0,0.00075718]
[1740446501376,0.00043126,92246.0,92239.0,0.00075758]
[1740446502308,0.00043126,92246.0,92238.0,0.07238928]
[1740446502476,0.00043126,92246.0,92239.0,0.00075743]
[1740446502875,0.00043126,92246.0,92234.0,0.19485647]
[1740446503075,0.00043126,92246.0,92223.0,0.02968077]
[1740446503288,0.00276477,92245.0,92223.0,0.02968077]
[1740446503494,0.0018265,92249.0,92224.0,0.02]
[1740446503691,0.00275821,92248.0,92223.0,0.02968077]
[1740446503893,0.01659045,92241.0,92223.0,0.01801258]
[1740446504321,0.00822542,92225.0,92223.0,0.01801258]
[1740446504639,0.00822542,92225.0,92209.0,0.001696]
[1740446504843,0.00275803,92224.0,92209.0,0.001696]
[1740446505072,0.00822542,92225.0,92209.0,0.001696]
[1740446505400,0.01659045,92222.0,92207.0,0.14331227]
[1740446505803,0.00274688,92221.0,92207.0,0.14331227]
[1740446506026,0.01933733,92221.0,92207.0,0.14331227]
[1740446506379,0.00274688,92221.0,92208.0,0.01433123]
[1740446506734,0.00274688,92221.0,92209.0,0.082]
[1740446506939,0.00287611,92221.0,92209.0,0.082]
[1740446507151,0.00012923,92221.0,92209.0,0.082]
[1740446507515,0.00012923,92221.0,92208.0,0.01433123]
[1740446507643,0.00012923,92221.0,92207.0,0.14331227]
[1740446508053,0.002744,92220.0,92208.0,0.01433123]
[1740446508250,0.00012923,92221.0,92208.0,0.01433123]
[1740446508495,0.00274369,92219.0,92208.0,0.01433123]
[1740446508711,0.00012923,92221.0,92208.0,0.01433123]
[1740446509269,0.00012923,92221.0,92207.0,0.14331227]
[1740446510710,0.00012923,92221.0,92192.0,0.082]
[1740446510909,0.01659045,92216.0,92182.0,0.02]
[1740446511137,0.00012923,92221.0,92186.0,0.02]
[1740446511299,0.00012923,92221.0,92189.0,0.08675425]
[1740446511528,0.00012923,92221.0,92190.0,0.03669543]
[1740446511762,0.01659045,92218.0,92190.0,0.01669543]
[1740446511979,0.01659045,92215.0,92184.0,0.0136]
[1740446512192,0.01659045,92215.0,92181.0,0.0764]
[1740446512193,0.01659045,92214.0,92181.0,0.0764]
[1740446512386,0.01659045,92211.0,92181.0,0.0764]
[1740446512608,0.01659045,92206.0,92170.0,0.53180122]
[1740446512833,0.0492,92217.0,92171.0,0.0136]
[1740446512834,0.01659045,92199.0,92171.0,0.0136]
[1740446513005,0.01659045,92199.0,92172.0,0.04801123]
[1740446513379,0.01702249,92193.0,92172.0,0.04801123]
[1740446513585,0.01702249,92193.0,92172.0,0.02801123]
[1740446513787,0.01702249,92193.0,92173.0,0.02]
[1740446514652,0.01702249,92193.0,92180.0,0.08675425]
[1740446514837,0.01702249,92193.0,92181.0,0.01408498]
[1740446515409,0.01702249,92193.0,92191.0,0.08675425]
[1740446515683,0.01702249,92193.0,92182.0,0.02]
[1740446515684,0.01702249,92193.0,92183.0,0.38848895]
[1740446516309,0.01702249,92193.0,92192.0,0.02]
[1740446516726,0.0010639,92193.0,92192.0,0.55180122]
[1740446516971,0.0010639,92193.0,92192.0,0.7311223]
[1740446517164,0.0008481,92221.0,92208.0,0.02]
[1740446517367,0.0008481,92221.0,92209.0,0.14331227]
[1740446517516,0.01701706,92218.0,92209.0,0.14331227]